Cogmind - Beta 13 @@@ ROGUE MODE // 2024.04.11 @ 18:54:54 Player: NikedNOGsing_in_can't Result: Self-destructed Performance ------------- Evolutions (1) 500 Regions Visited (3) 600 Robots Destroyed (28) 140 Value Destroyed (668) 668 Prototype IDs (2) 40 Alien Tech Used (0) 0 Bonus (0) 0 TOTAL SCORE: 1948 Bonus ------- None Cogmind --------- Core Integrity 400/400 Matter 210/300 Energy 125/125 System Corruption 0% Temperature Cool (0) Movement Treading (160) Location -9/Materials Parts ------- > --- POWER (1) -------- Light Ion Engine > --- PROPULSION (4) --- Light Treads Light Treads > --- UTILITY (2) ------ Large Storage Unit Targeting Computer > --- WEAPON (2) ------- Assault Rifle Assault Rifle > --- INVENTORY (15) --- Light Treads Improved Heat Sink Weight Redist. System Sensor Array Targeting Computer ECM Suite Light Armor Plating EM Pulse Gun Grenade Launcher Datajack Hammer Makeshift Hammer Peak State ------------ > --- POWER ------------ Light Ion Engine > --- PROPULSION ------- Light Treads Light Treads > --- UTILITY ---------- Large Storage Unit Targeting Computer > --- WEAPON ----------- Assault Rifle Makeshift Hammer > --- INVENTORY -------- Light Treads Light Treads Weight Redist. System Sensor Array Targeting Computer ECM Suite Light Armor Plating EM Pulse Gun Assault Rifle Grenade Launcher Grenade Launcher Datajack Hammer [Rating: 11] Favorites ----------- Power Light Ion Engine Engine Light Ion Engine Propulsion Light Treads Treads Light Treads Utility Targeting Computer Storage Large Storage Unit Processor Targeting Computer Protection Light Armor Plating Weapon Assault Rifle Energy Gun EM Pulse Gun Ballistic Gun Assault Rifle Launcher Grenade Launcher Impact Weapon Makeshift Hammer Build | -11 -10 -10 -9 ------- Run | Yrd Mat Min Mat Slots Evolved 2 | . . . 2 Power . | . . . . Propulsion 2 | . . . 2 Utility . | . . . . Weapon . | . . . . Parts Attached 30 | 7 14 9 . Power 5 | 2 2 1 . Engine 5 | 2 2 1 . Core . | . . . . Reactor . | . . . . Propulsion 5 | 2 2 1 . Treads 5 | 2 2 1 . Leg . | . . . . Wheel . | . . . . Hover . | . . . . Flight . | . . . . Utility 5 | 1 4 . . Device . | . . . . Storage 3 | 1 2 . . Processor 1 | . 1 . . Hackware . | . . . . Protection 1 | . 1 . . Artifact . | . . . . Weapon 15 | 2 6 7 . Energy Gun 1 | 1 . . . Energy Cannon . | . . . . Ballistic Gun 9 | 1 5 3 . Ballistic Cannon . | . . . . Launcher 4 | . 1 3 . Special Weapon . | . . . . Impact Weapon 1 | . . 1 . Slashing Weapon . | . . . . Piercing Weapon . | . . . . Special Melee Weapon . | . . . . Unidentified Prototypes . | . . . . Parts Lost 3 | . . 3 . Power 1 | . . 1 . Propulsion 1 | . . 1 . Utility . | . . . . Weapon 1 | . . 1 . Highest Loss Streak 2 | . . 2 . To Critical Strikes . | . . . . Average Slot Usage (%) 99 | . 99 99 . Engine 13 | . 14 13 . Treads 28 | . 28 28 . Storage 14 | . 14 14 . Processor 13 | . 13 14 . Energy Gun 1 | . 3 . . Ballistic Gun 21 | . 20 22 . Launcher 4 | . 4 5 . Naked Turns . | . . . . Heaviest Build 29 | 14 28 29 . Greatest Support 40 | 40 40 40 . Greatest Overweight (x) . | . . . . Average Overweight (x) . | . . . . Largest Inventory Capacity 15 | 8 15 15 . Average Capacity 12 | 7 10 15 . Most Carried 13 | 5 13 13 . Average Carried 10 | 2 9 12 . Final Capacity 15 | 8 15 15 15 Final Carried 13 | 3 13 12 12 Class Distribution -------------------- 100% | Mutant Dominant Class ---------------- Mutant | -10/Materials Mutant | -10/Mines Mutant | -9/Materials Resources | -11 -10 -10 -9 ----------- Run | Yrd Mat Min Mat Matter Collected 853 | 294 408 151 . Remotely . | . . . . Salvage Created 953 | 114 688 151 . Parts 48 | 2 40 6 . Haulers Intercepted 2 | . 2 . . Recyclers Shooed 1 | . 1 . . Parts Field Recycled . | . . . . Retrieved Matter . | . . . . Parts Self-Destructed . | . . . . Prevented . | . . . . Kills | -11 -10 -10 -9 ------- Run | Yrd Mat Min Mat Combat Hostiles Destroyed 17 | . 11 6 . Guns 10 | . 8 2 . AOE 7 | . 3 4 . Classes Destroyed 8 | 2 6 . . Builder 2 | . 2 . . Tunneler 1 | 1 . . . Hauler 2 | . 2 . . Recycler 3 | 1 2 . . Operator 1 | . 1 . . Watcher 2 | . 2 . . Swarmer 3 | . 3 . . Grunt 14 | . 8 6 . Best Kill Streak 5 | 2 5 2 . Combat Bots Only 3 | . 3 2 . Max Kills in Single Turn 3 | 1 3 2 . Gunslinging . | . . . . Exploded 2 | . 2 2 . Melee . | . . . . Uniques/NPCs Destroyed . | . . . . Combat | -11 -10 -10 -9 -------- Run | Yrd Mat Min Mat Hostile Shots Fired 80 | . 47 33 . Missed 25 | . 16 9 . Damage Taken 934 | . 486 448 . Core 141 | . 91 50 . Absorbed by Shields . | . . . . Core Remaining (%) 71 | 100 . 43 . Volleys Fired 70 | 8 50 12 . Largest 2 | 2 2 2 . Hottest 60 | 60 60 60 . Shots Fired 137 | 16 97 24 . Gun 120 | 16 91 13 . Cannon . | . . . . Launcher 17 | . 6 11 . Special . | . . . . Kinetic 96 | 8 75 13 . Thermal . | . . . . Explosive 17 | . 6 11 . Electromagnetic 24 | 8 16 . . Robot Hit Streak 10 | 7 10 8 . Robot Miss Streak 5 | 1 5 1 . Penetration Max . | . . . . Secondary Targets 2 | . 1 1 . Max Gunslinging Chain 1 | . 1 1 . Shots Hit Robots 91 | 11 63 17 . Core Hits 47 | 3 31 13 . Critical Kills . | . . . . Critical Parts Destroyed . | . . . . Critical Strikes 1 | 1 . . . Corrupt 1 | 1 . . . Melee Attacks . | . . . . Impact . | . . . . Slashing . | . . . . Piercing . | . . . . Sneak Attacks . | . . . . Combat Hostiles . | . . . . Follow-up Attacks . | . . . . Damage Inflicted 1945 | 158 1198 589 . Guns 1011 | 158 751 102 . Cannons . | . . . . Explosions 934 | . 447 487 . Melee . | . . . . Ramming . | . . . . Kinetic 738 | 63 573 102 . Thermal 106 | . 106 . . Explosive 828 | . 341 487 . Electromagnetic 273 | 95 178 . . Impact . | . . . . Slashing . | . . . . Piercing . | . . . . Highest Corruption . | . . . . Average Corruption . | . . . . Corruption Purged . | . . . . Corruption Blocked . | . . . . Overload Shots . | . . . . Overflow Damage 37 | . 5 32 . Projectiles . | . . . . Explosions 37 | . 5 32 . Melee . | . . . . Knockbacks . | . . . . Impact . | . . . . Kinetic . | . . . . Secondary . | . . . . Self-Inflicted Damage 222 | . 88 134 . Shots 9 | . 3 6 . Rammed . | . . . . Targets Rammed . | . . . . Kicked . | . . . . Crushed . | . . . . Highest Temperature 99 | . 99 18 . Average Temperature 33 | . 38 9 . Received Heat Transfer 381 | . 204 177 . Siege Activations . | . . . . Robots Corrupted . | . . . . Combat Hostiles . | . . . . Parts Fried . | . . . . Impact Corruptions . | . . . . Robots Melted . | . . . . Combat Hostiles . | . . . . Parts Melted . | . . . . Heat Transferred 150 | . 150 . . Parts Sabotaged . | . . . . Parts Stolen . | . . . . Parts Stripped . | . . . . Power Chain Reactions 2 | . 2 . . Alert | -11 -10 -10 -9 ------- Run | Yrd Mat Min Mat Peak Influence 278 | 10 278 147 . Initial 15 | . 6 15 . Average 88 | 4 106 75 . Maximum Alert Level 1 | . 1 . . Low Security (%) 94 | 100 90 100 . Level 1 5 | . 9 . . Level 2 . | . . . . Level 3 . | . . . . Level 4 . | . . . . Level 5 . | . . . . High Security . | . . . . Max Security . | . . . . Squads Dispatched 2 | . 2 . . Investigation 1 | . 1 . . Extermination . | . . . . Reinforcement 1 | . 1 . . Assault . | . . . . Garrison . | . . . . Intercept . | . . . . Searches Triggered . | . . . . Construction Impeded . | . . . . Haulers Reinforced . | . . . . Active Scanning Responses . | . . . . Cargo Convoy Interrupts . | . . . . Stealth | -11 -10 -10 -9 --------- Run | Yrd Mat Min Mat Distress Signals . | . . . . Communications Jammed . | . . . . Distress Signals . | . . . . Times Spotted 22 | . 16 6 . Peak Tracking Total 4 | . 4 2 . Tactical Retreats . | . . . . Traps | -11 -10 -10 -9 ------- Run | Yrd Mat Min Mat Traps Triggered 1 | . 1 . . Indirectly . | . . . . Trap Hack Attempts . | . . . . Triggered . | . . . . Disarmed . | . . . . Reprogrammed . | . . . . Reused . | . . . . Traps Extracted . | . . . . Installed . | . . . . Triggered . | . . . . Machines | -11 -10 -10 -9 ---------- Run | Yrd Mat Min Mat Machines Disabled 1 | . . 1 . Max in Single Turn 1 | . . 1 . Machines Repaired . | . . . . Machines Dismantled . | . . . . Machines Sabotaged . | . . . . Overloaded Fab Kills . | . . . . Hacking | -11 -10 -10 -9 --------- Run | Yrd Mat Min Mat Machines Accessed 7 | . 7 . . Terminals 6 | . 6 . . Fabricators . | . . . . Repair Stations 1 | . 1 . . Recycling Units . | . . . . Scanalyzers . | . . . . Garrison Access . | . . . . Total Hacks 18 | . 18 . . Successful 8 | . 8 . . Failed 10 | . 10 . . Catastrophic 1 | . 1 . . Database Lockouts . | . . . . Manual 13 | . 13 . . Terminals 16 | . 16 . . Fabricators . | . . . . Repair Stations 2 | . 2 . . Recycling Units . | . . . . Scanalyzers . | . . . . Garrison Access . | . . . . Terminal Hacks 5 | . 5 . . Prototype ID Bank 1 | . 1 . . Branch Access Points 1 | . 1 . . Locate Traps 1 | . 1 . . Recall Reinforcements 1 | . 1 . . Hauler Manifests 1 | . 1 . . Fabricator Hacks . | . . . . Repair Station Hacks 1 | . 1 . . Scan Component 1 | . 1 . . Recycling Unit Hacks . | . . . . Scanalyzer . | . . . . Garrison Access Hacks . | . . . . Unauthorized Hacks 2 | . 2 . . Terminals 2 | . 2 . . Operators 2 | . 2 . . Fabricators . | . . . . Repair Stations . | . . . . Recycling Units . | . . . . Scanalyzers . | . . . . Garrison Access . | . . . . Data Cores Recovered . | . . . . Used . | . . . . Hacking Detections 6 | . 6 . . Full Trace Events . | . . . . Feedback Events . | . . . . Feedback Blocked . | . . . . Robot Schematics Acquired . | . . . . Robots Built . | . . . . Authchips . | . . . . Time . | . . . . Total Robot Build Rating . | . . . . Part Schematics Acquired . | . . . . Parts Built . | . . . . Authchips . | . . . . Time . | . . . . Total Part Build Rating . | . . . . Parts Repaired . | . . . . Time . | . . . . Parts Recycled . | . . . . Recycled Matter . | . . . . Retrieved Matter . | . . . . Retrieved Components . | . . . . Parts Scanalyzed . | . . . . Part Schematics Acquired . | . . . . Parts Damaged . | . . . . Bothacking | -11 -10 -10 -9 ------------ Run | Yrd Mat Min Mat Used RIF Installer . | . . . . Robots Hacked . | . . . . Non-combat . | . . . . Combat . | . . . . Robot Hacks Applied . | . . . . Relay Couplers Released . | . . . . Fabnet Peak Effective % . | . . . . Robots Rewired . | . . . . Allies Hacked . | . . . . Hacks Repelled . | . . . . Allies | -11 -10 -10 -9 -------- Run | Yrd Mat Min Mat Total Allies . | . . . . Largest Group . | . . . . Highest-Rated Group . | . . . . Highest-Rated Ally . | . . . . Total Orders . | . . . . Ally Attacks . | . . . . Total Damage . | . . . . Kills . | . . . . Allies Corrupted . | . . . . Allies Melted . | . . . . Intel | -11 -10 -10 -9 ------- Run | Yrd Mat Min Mat Robot Analysis Total . | . . . . Derelict Logs Recovered 1 | . . 1 . Drone Launches . | . . . . Drone Recoveries . | . . . . Exploration | -11 -10 -10 -9 ------------- Run | Yrd Mat Min Mat Turns Passed 2317 | 151 1284 882 . Spaces Moved 1279 | 84 675 520 . Core 21 | 21 . . . Treads 1258 | 63 675 520 . Legs . | . . . . Wheels . | . . . . Hover . | . . . . Flight . | . . . . Fastest Speed 50 | 50 160 160 . Average Speed 158 | 132 160 160 . Slowest Speed 160 | 160 160 160 . Overloaded Moves . | . . . . Propulsion Burnouts . | . . . . Robots Hopped . | . . . . Cave-ins Triggered . | . . . . Exploration Rate (%) 65 | 5 97 94 . Regions Visited 3 Branch Regions 1 Pre-discovered Areas 1 | . . 1 . Known Exits Taken 1 | . 1 . . Unknown Exits Taken 2 | 1 . 1 . Scrap Searched 1 | . . 1 . Spaces Dug . | . . . . Terrain Destroyed 122 | . 42 80 . Melee . | . . . . Projectile . | . . . . AOE 122 | . 42 80 . Terrain Rammed . | . . . . Walls Destroyed . | . . . . Machines Disabled . | . . . . Actions | -11 -10 -10 -9 --------- Run | Yrd Mat Min Mat Total 1430 | 107 780 543 . Wait 23 | . 22 1 . Move 1276 | 83 674 519 . Hop . | . . . . Pick Up 25 | 9 14 2 . Fast Attach . | . . . . Attach 10 | 6 1 3 . Detach . | . . . . Swap 20 | 1 13 6 . Drop 6 | . 6 . . Fire 70 | 8 50 12 . Melee . | . . . . Ram . | . . . . Kick . | . . . . Crush . | . . . . Escape Stasis . | . . . . Rewire . | . . . . Trap . | . . . . Miscellaneous . | . . . . Route ------- -11/Scrapyard -10/Materials (discovered 5 exits: [*Mat x3] / *Min x2) -10/Mines (discovered 2 exits: [*Mat] / [*Sub]) -9/Materials History --------- Turn | Location | Event 5 | -11/Scrapyard | Discovered new exit (range 15) 152 | -11/Scrapyard | Entered Materials 310 | -10/Materials | Build established: Mutant 493 | -10/Materials | Identified exit to Mines 813 | -10/Materials | Discovered new exit (range 4) 892 | -10/Materials | Discovered new exit (range 16) 949 | -10/Materials | Discovered new exit (range 15) 1436 | -10/Materials | Entered Mines 1543 | -10/Mines | Discovered new exit (range 10) 1702 | -10/Mines | Learned location of Zion (-7) 1724 | -10/Mines | A weapon hastily lodged in a ceiling crevice suddenly fell to the ground 2046 | -10/Mines | Core integrity fell below 50% 2318 | -10/Mines | Discovered new exit (range 6) 2318 | -10/Mines | Entered Materials 2318 | -9/Materials | Evolved 2 slots: Propulsion x2 2318 | -9/Materials | Self-destructed Last Messages --------------- 01882_ Found Sensor Array. 01882_ Found EM Pulse Gun. 01882_ Found Heat Sink. 01882_ Found Datajack. 01882_ Found 22 Matter. 01883_ Acquired 22 matter. 02036_ Laser Drill disabled. 02041_ Lgt. Treads destroyed. 02045_ Grenade Launcher destroyed. 02053_ G-47 Trooper destroyed. 02053_ Switching to secondary target: G-34 Mercenary. 02059_ G-34 Mercenary destroyed. 02067_ Acquired 34 matter. 02072_ Acquired 42 matter. 02075_ Acquired Imp. Heat Sink. 02318_ EXIT=FOUND PARAMETERS=PROPULSION+2 LOCATION=UNKNOWN GOAL=ESCAPE Map ----- +----------------------------------------------------+ | | | | | | | | | | | | | | | | | | | | | | | | | | | | | | | | | | | | | ??????????????????????????????????????????????? | | ??????????????????????????????????????????????? | | ??????????????????????????????????????????????? | | ??????????????????????????????????????????????? | | ??????????????????????????????????????????????? | | ????????????????????#########?????????????????? | | ????????????????????# #?????????????????? | | ????????????????????# @ #?????????????????? | | ????????????????????# #?????????????????? | | ????????????????????##### #?????????????????? | | ?????????????????????????? #?????????????????? | | ??????????????????????????? #?????????????????? | | ??????????????????????????????????????????????? | | ??????????????????????????????????????????????? | | ??????????????????????????????????????????????? | | ??????????????????????????????????????????????? | | ??????????????????????????????????????????????? | | ??????????????????????????????????????????????? | | ??????????????????????????????????????????????? | | ??????????????????????????????????????????????? | | ??????????????????????????????????????????????? | | ??????????????????????????????????????????????? | | ??????????????????????????????????????????????? | | ??????????????????????????????????????????????? | | ??????????????????????????????????????????????? | | ??????????????????????????????????????????????? | | ??????????????????????????????????????????????? | | ??????????????????????????????????????????????? | | ??????????????????????????????????????????????? | | ??????????????????????????????????????????????? | | ??????????????????????????????????????????????? | | ??????????????????????????????????????????????? | +----------------------------------------------------+ Best States ------------- Heat Dissipation 25 Energy Generation 10 Energy Capacity 250 Matter Stores 300 Matter Capacity 300 Sight Range 16 Terrain Scan Density 10 Armor Coverage 150 Evasion (%) 50 Targeting Accuracy 5 Recoil Reduction 2 Item Schematics ----------------- None Robot Schematics ------------------ None Fabricated ------------ Nothing Alien Tech Used ----------------- None Achievements -------------- None Challenges ------------ None Game ------ Seed GlidesysVisualBoregun Manual? 0 Play Time 00:14:34 Cumulative 27.6 hours Start 2024.04.11 @ 18:19:59 End 2024.04.11 @ 18:54:54 Sessions 1 Manual Loads 0 Difficulty Rogue Special Mode None Game No. 19 Rogue 19 Adventurer 0 Explorer 0 Win Type - Total 0 Types 0/0/0/0/0/0/0/0/0 Lore% 22 Gallery% 27 Achievement% 21 Wizard Run 0 Options --------- Layout 1 ASCII 0 Keyboard 0 Movement Mouse Keybinds 0 Fullscreen 1 Font 24/Smallcaps Map View 50x35 Zoom Use 0% Tactical HUD 1 Map Filters NONE Filters NONE Steam 1 RUN: 265a403a-42dd-4a2f-885e-6ec38166a4de